fUST/lending_fUST_20241020
["ID","MTS","AMOUNT","RATE_DAILY","PERIOD"]
[340530411,1729419254058,-500.0,0.00027,60]
[340530412,1729419254100,-500.0,0.00027,60]
[340530413,1729419254141,-500.0,0.00027,60]
[340530414,1729419254186,-500.0,0.00027,60]
[340530415,1729419254226,-500.0,0.00027,60]
[340530416,1729419254268,-500.0,0.00027,60]
[340530417,1729419254313,-500.0,0.00027,60]
[340530418,1729419254355,-500.0,0.00027,60]
[340530419,1729419254398,-500.0,0.00027,60]
[340530420,1729419254440,-229.24625131,0.00027,60]
[340530421,1729419254484,-500.0,0.00027,60]
[340530422,1729419254533,-500.0,0.00027,60]
[340530423,1729419254576,-500.0,0.00027,60]
[340530424,1729419254619,-500.0,0.00027,60]
[340530425,1729419254661,-901.38,0.00027,60]
[340530426,1729419254705,-500.0,0.00027,60]
[340530427,1729419254744,-500.0,0.00027,60]
[340530428,1729419254785,-282.87321305,0.00027,60]
[340530429,1729419254824,-976.18,0.00027,60]
[340530430,1729419254864,-500.0,0.00027,60]
[340530431,1729419254906,-509.228902,0.00027,60]
[340530432,1729419254949,-500.0,0.00027,60]
[340530433,1729419254992,-500.0,0.00027,60]
[340530434,1729419255034,-500.0,0.00027,60]
[340530435,1729419255075,-500.0,0.00027,60]
[340530436,1729419255118,-500.0,0.00027,60]
[340530437,1729419255165,-500.0,0.00027,60]
[340530438,1729419255208,-984.84,0.00027,60]
[340530439,1729419255251,-500.0,0.00027,60]
[340530440,1729419255294,-500.0,0.00027,60]
[340530441,1729419255338,-393.18196097,0.00027,60]
[340530442,1729419255382,-500.0,0.00027,60]
[340530443,1729419255424,-500.0,0.00027,60]
[340530444,1729419255470,-500.0,0.00027,60]
[340530445,1729419255514,-500.0,0.00027,60]
[340530446,1729419255558,-1265.39,0.00027,60]
[340530447,1729419255601,-500.0,0.00027,60]
[340530448,1729419255645,-500.0,0.00027,60]
[340530449,1729419255691,-756.35,0.00027,60]
[340530450,1729419255734,-500.0,0.00027,60]
[340530451,1729419255779,-500.0,0.00027,60]
[340530452,1729419255825,-502.39070321,0.00027,30]
[340530453,1729419255871,-515.67762333,0.00027,60]
[340530454,1729419255914,-500.0,0.00027,60]
[340530455,1729419255956,-3615.14,0.00027,60]
[340530456,1729419255995,-500.0,0.00027,60]
[340530457,1729419256034,-500.0,0.00027,60]
[340530458,1729419256076,-500.0,0.00027,60]
[340530459,1729419256117,-500.0,0.00027,60]
[340530460,1729419256160,-500.0,0.00027,60]
[340530461,1729419256201,-308.77469085,0.00027,60]
[340530462,1729419256245,-500.0,0.00027,60]
[340530463,1729419256290,-500.0,0.00027,60]
[340530464,1729419256334,-906.49,0.00027,60]
[340530465,1729419256378,-500.0,0.00027,60]
[340530466,1729419256423,-500.0,0.00027,60]
[340530467,1729419256468,-500.0,0.00027,60]
[340530468,1729419256514,-826.69,0.00027,60]
[340530469,1729419256557,-500.0,0.00027,60]
[340530470,1729419256599,-500.0,0.00027,60]
[340530471,1729419256642,-500.0,0.00027,60]
[340530472,1729419256687,-500.0,0.00027,60]
[340530473,1729419256733,-500.0,0.00027,60]
[340530474,1729419256777,-500.0,0.00027,60]
[340530475,1729419256819,-500.0,0.00027,60]
[340530476,1729419256864,-500.0,0.00027,60]
[340530477,1729419256907,-500.0,0.00027,60]
[340530478,1729419256947,-500.0,0.00027,60]
[340530479,1729419256990,-500.0,0.00027,60]
[340530480,1729419257032,-500.0,0.00027,60]
[340530481,1729419257075,-500.0,0.00027,60]
[340530482,1729419257117,-838.51,0.00027,60]
[340530483,1729419257167,-500.0,0.00027,60]
[340530484,1729419257212,-500.0,0.00027,60]
[340530485,1729419257256,-500.0,0.00027,60]
[340530486,1729419257296,-500.0,0.00027,60]
[340530487,1729419257337,-1250.67,0.00027,60]
[340530488,1729419257377,-500.0,0.00027,60]
[340530489,1729419257420,-557.05,0.00027,60]
[340530490,1729419257463,-500.0,0.00027,60]
[340530491,1729419257506,-500.0,0.00027,60]
[340530492,1729419257548,-500.0,0.00027,60]
[340530493,1729419257589,-500.0,0.00027,60]
[340530494,1729419257632,-500.0,0.00027,60]
[340530495,1729419257838,-500.0,0.00027,60]
[340530496,1729419257882,-500.0,0.00027,60]
[340530497,1729419257928,-500.0,0.00027,60]
[340530498,1729419257973,-740.62,0.00027,60]
[340530499,1729419258016,-500.0,0.00027,60]
[340530500,1729419258061,-653.24,0.00027,60]
[340530501,1729419258106,-781.83,0.00027,60]
[340530502,1729419258148,-516.46239388,0.00027,60]
[340530503,1729419258196,-500.0,0.00027,60]
[340530504,1729419258240,-500.0,0.00027,60]
[340530505,1729419258281,-500.0,0.00027,60]
[340530506,1729419258324,-500.0,0.00027,60]
[340530507,1729419258366,-500.0,0.00027,60]
[340530508,1729419258410,-500.0,0.00027,60]
[340530509,1729419258453,-553.7847419,0.00027,60]
[340530510,1729419258497,-500.0,0.00027,60]
[340530511,1729419258539,-500.0,0.00027,60]
[340530512,1729419258581,-567.31,0.00027,60]
[340530513,1729419258624,-500.0,0.00027,60]
[340530514,1729419258667,-500.0,0.00027,60]
[340530515,1729419258713,-500.0,0.00027,60]
[340530516,1729419258763,-500.0,0.00027,60]
[340530517,1729419258805,-500.0,0.00027,60]
[340530518,1729419258848,-500.0,0.00027,60]
[340530519,1729419258891,-500.0,0.00027,60]
[340530520,1729419258935,-500.0,0.00027,60]
[340530521,1729419258976,-500.0,0.00027,60]
[340530522,1729419259020,-500.0,0.00027,60]
[340530523,1729419259061,-500.0,0.00027,60]
[340530524,1729419259101,-1000.0,0.00027,60]
[340530525,1729419259146,-500.0,0.00027,60]
[340530526,1729419259187,-500.61303751,0.00027,60]
[340530527,1729419259229,-522.93053635,0.00027,60]
[340530528,1729419259272,-507.94209415,0.00027,60]
[340530529,1729419259315,-500.0,0.00027,60]
[340530530,1729419259356,-500.0,0.00027,60]
[340530531,1729419259398,-500.0,0.00027,60]
[340530532,1729419259440,-642.87,0.00027,60]
[340530533,1729419259487,-644.73,0.00027,60]
[340530534,1729419259528,-500.0,0.00027,60]
[340530535,1729419259570,-500.0,0.00027,60]
[340530536,1729419259609,-517.10939127,0.00027,60]
[340530537,1729419259646,-500.0,0.00027,60]
[340530538,1729419259686,-500.0,0.00027,60]
[340530539,1729419259725,-500.0,0.00027,60]
[340530540,1729419259765,-500.0,0.00027,60]
[340530541,1729419259805,-500.0,0.00027,60]
[340530542,1729419259846,-500.0,0.00027,60]
[340530543,1729419259885,-500.0,0.00027,60]
[340530544,1729419259927,-515.56873135,0.00027,60]
[340530545,1729419259969,-500.0,0.00027,60]
[340530546,1729419260010,-531.12473816,0.00027,60]
[340530547,1729419260060,-794.65,0.00027,60]
[340530548,1729419260119,-500.0,0.00027,60]
[340530549,1729419260178,-1157.77,0.00027,60]
[340530550,1729419260236,-575.52,0.00027,60]
[340530551,1729419260292,-666.47,0.00027,60]
[340530552,1729419260351,-500.0,0.00027,60]
[340530553,1729419260401,-724.23,0.00027,60]
[340530554,1729419260456,-524.17463404,0.00027,60]
[340530555,1729419260519,-500.0,0.00027,60]
[340530556,1729419260570,-500.0,0.00027,60]
[340530557,1729419260624,-500.0,0.00027,60]
[340530558,1729419260677,-500.0,0.00027,60]
[340530559,1729419260729,-514.31861989,0.00027,60]
[340530560,1729419260777,-500.0,0.00027,60]
[340530561,1729419260828,-683.86,0.00027,60]
[340530562,1729419260882,-500.0,0.00027,60]
[340530563,1729419260932,-500.0,0.00027,60]
[340530564,1729419260983,-500.0,0.00027,60]
[340530565,1729419261035,-461.15468775,0.00027,60]
[340530566,1729419261085,-500.0,0.00027,60]
[340530567,1729419261138,-500.0,0.00027,60]
[340530568,1729419261191,-500.0,0.00027,60]
[340530569,1729419261244,-500.0,0.00027,60]
[340530570,1729419261296,-502.72183724,0.00027,60]
[340530571,1729419261348,-500.0,0.00027,60]
[340530572,1729419261405,-977.76,0.00027,60]
[340530573,1729419261462,-500.48506901,0.00027,60]
[340530574,1729419261514,-500.0,0.00027,60]
[340530575,1729419261567,-500.0,0.00027,60]
[340530576,1729419261617,-500.0,0.00027,60]
[340530577,1729419261666,-500.0,0.00027,60]
[340530578,1729419261716,-753.91,0.00027,30]
[340530579,1729419261765,-500.0,0.00027,60]
[340530580,1729419261817,-502.94201917,0.00027,60]
[340530581,1729419261867,-500.0,0.00027,60]
[340530582,1729419261914,-500.0,0.00027,60]
[340530583,1729419261971,-333.22628751,0.00027,60]
[340530584,1729419262024,-500.0,0.00027,60]
[340530585,1729419262074,-500.0,0.00027,60]
[340530586,1729419262125,-502.01397487,0.00027,60]
[340530587,1729419262177,-500.0,0.00027,60]
[340530588,1729419262230,-1373.45,0.00027,60]
[340530589,1729419262282,-500.0,0.00027,60]
[340530590,1729419262332,-500.0,0.00027,60]
[340530591,1729419262383,-500.0,0.00027,60]
[340530592,1729419262432,-995.37,0.00027,60]
[340530593,1729419262486,-502.75723591,0.00027,60]
[340530594,1729419262538,-500.0,0.00027,60]
[340530595,1729419262586,-976.95,0.00027,60]
[340530596,1729419262635,-512.87955857,0.00027,60]
[340530597,1729419262948,-500.0,0.00027,60]
[340530598,1729419263011,-500.0,0.00027,60]
[340530599,1729419263053,-500.0,0.00027,60]
[340530600,1729419263094,-1536.79,0.00027,60]
[340530601,1729419263136,-500.0,0.00027,60]
[340530602,1729419263177,-500.0,0.00027,60]
[340530603,1729419263221,-500.0,0.00027,60]
[340530604,1729419263266,-500.0,0.00027,60]
[340530605,1729419263309,-1834.09,0.00027,60]
[340530606,1729419263350,-500.0,0.00027,60]
[340530607,1729419263392,-500.0,0.00027,60]
[340530608,1729419263436,-500.0,0.00027,60]
[340530609,1729419263485,-500.0,0.00027,60]
[340530610,1729419263530,-642.12,0.00027,60]
[340530611,1729419263575,-500.0,0.00027,60]
[340530612,1729419263615,-500.0,0.00027,60]
[340530613,1729419263656,-500.0,0.00027,60]
[340530614,1729419263695,-501.59149795,0.00027,60]
[340530615,1729419263736,-500.0,0.00027,60]
[340530616,1729419263787,-722.3,0.00027,60]
[340530617,1729419263833,-500.0,0.00027,60]
[340530618,1729419263879,-500.0,0.00027,60]
[340530619,1729419263925,-545.49,0.00027,60]
[340530620,1729419263971,-500.0,0.00027,60]
[340530621,1729419264022,-500.0,0.00027,60]
[340530622,1729419264070,-500.0,0.00027,60]
[340530623,1729419264111,-500.0,0.00027,60]
[340530624,1729419264153,-500.0,0.00027,60]
[340530625,1729419264194,-500.0,0.00027,60]
[340530626,1729419264236,-200.0,0.00027,60]
[340530627,1729419264277,-500.0,0.00027,60]
[340530628,1729419264319,-500.0,0.00027,60]
[340530629,1729419264359,-816.19,0.00027,60]
[340530630,1729419264400,-500.0,0.00027,60]
[340530631,1729419264442,-500.0,0.00027,60]
[340530632,1729419264486,-334.95078156,0.00027,60]
[340530633,1729419264528,-500.0,0.00027,60]
[340530634,1729419264568,-500.0,0.00027,60]
[340530635,1729419264610,-500.0,0.00027,60]
[340530636,1729419264653,-998.04,0.00027,60]
[340530637,1729419264693,-715.54,0.00027,60]
[340530638,1729419264735,-500.0,0.00027,60]
[340530639,1729419264781,-500.0,0.00027,60]
[340530640,1729419264827,-500.0,0.00027,60]
[340530641,1729419264873,-500.0,0.00027,60]
[340530642,1729419264918,-500.0,0.00027,60]
[340530643,1729419264961,-500.0,0.00027,60]
[340530644,1729419265005,-500.0,0.00027,60]
[340530645,1729419265050,-501.46333988,0.00027,60]
[340530646,1729419265093,-506.49551015,0.00027,60]
[340530647,1729419265136,-653.44,0.00027,60]
[340530648,1729419265177,-654.0,0.00027,60]
[340530649,1729419265218,-610.06,0.00027,60]
[340530650,1729419265260,-506.38774384,0.00027,60]
[340530651,1729419265302,-500.0,0.00027,60]
[340530652,1729419265344,-500.0,0.00027,60]
[340530653,1729419265387,-500.0,0.00027,60]
[340530654,1729419265430,-500.0,0.00027,60]
[340530655,1729419265476,-500.0,0.00027,60]
[340530656,1729419265523,-500.0,0.00027,60]
[340530657,1729419265569,-503.65130529,0.00027,60]
[340530658,1729419265614,-1313.1,0.00027,60]
[340530659,1729419265659,-500.0,0.00027,60]
[340530660,1729419265703,-500.0,0.00027,60]
[340530661,1729419265746,-1128.8,0.00027,60]
[340530662,1729419265790,-500.0,0.00027,60]
[340530663,1729419265835,-500.46953073,0.00027,60]
[340530664,1729419265878,-500.0,0.00027,60]
[340530665,1729419265920,-705.62,0.00027,60]
[340530666,1729419265961,-500.0,0.00027,60]
[340530667,1729419266004,-500.4624466,0.00027,60]
[340530668,1729419266049,-500.0,0.00027,60]
[340530669,1729419266093,-500.0,0.00027,60]
[340530670,1729419266136,-500.0,0.00027,60]
[340530671,1729419266179,-500.0,0.00027,60]
[340530672,1729419266222,-1017.0,0.00027,60]
[340530673,1729419266266,-500.0,0.00027,60]
[340530674,1729419266307,-2422.71,0.00027,60]
[340530675,1729419266349,-500.0,0.00027,60]
[340530676,1729419266392,-500.0,0.00027,60]
[340530677,1729419266436,-500.0,0.00027,60]
[340530678,1729419266487,-500.0,0.00027,60]
[340530679,1729419266534,-1000.0,0.00027,60]
[340530680,1729419266578,-500.0,0.00027,60]
[340530681,1729419266621,-793.37,0.00027,60]
[340530682,1729419266663,-523.0100118,0.00027,60]
[340530683,1729419266706,-500.0,0.00027,60]
[340530684,1729419266750,-1077.51,0.00027,60]
[340530685,1729419266793,-1012.59,0.00027,60]
[340530686,1729419266837,-500.0,0.00027,60]
[340530687,1729419266880,-500.0,0.00027,60]
[340530688,1729419266921,-500.0,0.00027,60]
[340530689,1729419266965,-605.1,0.00027,60]
[340530690,1729419267010,-174.33746002,0.00027,60]
[340530691,1729419267056,-500.0,0.00027,60]
[340530692,1729419267104,-500.0,0.00027,60]
[340530693,1729419267150,-597.1,0.00027,60]
[340530694,1729419267192,-971.16,0.00027,60]
[340530695,1729419267236,-234.06744102,0.00027,60]
[340530696,1729419267278,-1020.08,0.00027,60]
[340530697,1729419267321,-916.34,0.00027,60]
[340530698,1729419267562,-513.62681914,0.00027,60]
[340530699,1729419267608,-651.69,0.00027,60]
[340530700,1729419267652,-500.0,0.00027,60]
[340530701,1729419267698,-500.0,0.00027,60]
[340530702,1729419267745,-500.0,0.00027,60]
[340530703,1729419267793,-449.06865987,0.00027,60]
[340530704,1729419267838,-508.28215462,0.00027,60]
[340530705,1729419267882,-718.76,0.00027,60]
[340530706,1729419267928,-500.0,0.00027,60]
[340530707,1729419267972,-826.26,0.00027,60]
[340530708,1729419268017,-500.0,0.00027,60]
[340530709,1729419268064,-500.0,0.00027,60]
[340530710,1729419268109,-500.0,0.00027,60]
[340530711,1729419268154,-500.0,0.00027,60]
[340530712,1729419268200,-695.34,0.00027,60]
[340530713,1729419268244,-522.44,0.00027,60]
[340530714,1729419268287,-1103.17,0.00027,60]
[340530715,1729419268330,-509.41805407,0.00027,60]
[340530716,1729419268379,-500.0,0.00027,60]
[340530717,1729419268423,-500.0,0.00027,60]
[340530718,1729419268471,-500.0,0.00027,60]
[340530719,1729419268518,-500.0,0.00027,60]
[340530720,1729419268561,-500.0,0.00027,60]
[340530721,1729419268604,-500.0,0.00027,60]
[340530722,1729419268647,-939.24,0.00027,60]
[340530723,1729419268691,-1009.81,0.00027,60]
[340530724,1729419268732,-500.0,0.00027,30]
[340530725,1729419268774,-500.0,0.00027,60]
[340530726,1729419268813,-827.5,0.00027,60]
[340530727,1729419268853,-1878.37,0.00027,60]
[340530728,1729419268894,-500.0,0.00027,60]
[340530729,1729419268935,-471.43390557,0.00027,60]
[340530730,1729419268977,-924.24,0.00027,60]
[340530731,1729419269020,-1033.03,0.00027,60]
[340530732,1729419269063,-930.76,0.00027,60]
[340530733,1729419269104,-500.0,0.00027,60]
[340530734,1729419269149,-500.0,0.00027,60]
[340530735,1729419269189,-500.0,0.00027,60]
[340530736,1729419269231,-500.0,0.00027,60]
[340530737,1729419269273,-913.38,0.00027,60]
[340530738,1729419269315,-500.0,0.00027,60]
[340530739,1729419269356,-500.0,0.00027,60]
[340530740,1729419269398,-1075.72,0.00027,60]
[340530741,1729419269440,-500.0,0.00027,60]
[340530742,1729419269484,-933.71,0.00027,60]
[340530743,1729419269530,-500.83930935,0.00027,60]
[340530744,1729419269575,-185.70175844,0.00027,60]
[340530745,1729419269619,-555.77900923,0.00027,60]
[340530746,1729419269663,-576.55378289,0.00027,60]
[340530747,1729419269705,-1942.87,0.00027,60]
[340530748,1729419269747,-500.0,0.00027,60]
[340530749,1729419269791,-683.73,0.00027,60]
[340530750,1729419269834,-500.0,0.00027,60]
[340530751,1729419269876,-500.0,0.00027,60]
[340530752,1729419269918,-500.0,0.00027,60]
[340530753,1729419269959,-500.0,0.00027,60]
[340530754,1729419270002,-500.0,0.00027,60]
[340530755,1729419270044,-500.0,0.00027,60]
[340530756,1729419270088,-500.0,0.00027,60]
[340530757,1729419270131,-692.24,0.00027,60]
[340530758,1729419270177,-1952.53,0.00027,30]
[340530759,1729419270220,-500.0,0.00027,60]
[340530760,1729419270266,-500.0,0.00027,60]
[340530761,1729419270310,-500.0,0.00027,60]
[340530762,1729419270355,-853.36,0.00027,60]
[340530763,1729419270400,-1000.49,0.00027,60]
[340530764,1729419270448,-500.0,0.00027,60]
[340530765,1729419270497,-500.0,0.00027,60]
[340530766,1729419270542,-500.0,0.00027,60]
[340530767,1729419270589,-685.33,0.00027,60]
[340530768,1729419270632,-711.37,0.00027,60]
[340530769,1729419270675,-500.0,0.00027,60]
[340530770,1729419270718,-949.34,0.00027,60]
[340530771,1729419270760,-500.0,0.00027,60]
[340530772,1729419270803,-500.0,0.00027,60]
[340530773,1729419270844,-965.19,0.00027,60]
[340530774,1729419270884,-539.21804622,0.00027,60]
[340530775,1729419270923,-500.0,0.00027,60]
[340530776,1729419270966,-531.76,0.00027,60]
[340530777,1729419271008,-844.86,0.00027,60]
[340530778,1729419271051,-500.0,0.00027,60]
[340530779,1729419271091,-511.65755104,0.00027,60]
[340530780,1729419271132,-500.0,0.00027,60]
[340530781,1729419271176,-500.0,0.00027,60]
[340530782,1729419271217,-500.0,0.00027,60]
[340530783,1729419271258,-1181.25,0.00027,60]
[340530784,1729419271298,-500.0,0.00027,60]
[340530785,1729419271341,-500.0,0.00027,60]
[340530786,1729419271381,-502.19156209,0.00027,60]
[340530787,1729419271422,-500.0,0.00027,60]
[340530788,1729419271469,-500.0,0.00027,60]
[340530789,1729419271512,-500.0,0.00027,60]
[340530790,1729419271555,-500.0,0.00027,60]
[340530791,1729419271596,-500.0,0.00027,60]
[340530792,1729419271639,-2310.58,0.00027,60]
[340530793,1729419271678,-778.47,0.00027,60]
[340530794,1729419271718,-500.0,0.00027,60]
[340530795,1729419271765,-500.0,0.00027,60]
[340530796,1729419271810,-501.17103085,0.00027,60]
[340530797,1729419271855,-767.08,0.00027,60]
[340530798,1729419271900,-500.0,0.00027,60]
[340530799,1729419271949,-828.5,0.00027,60]
[340530800,1729419271993,-1125.04,0.00027,60]
[340530801,1729419272036,-500.0,0.00027,60]
[340530802,1729419272255,-500.0,0.00027,60]
[340530803,1729419272297,-500.0,0.00027,60]
[340530804,1729419272343,-841.91,0.00027,60]
[340530805,1729419272385,-612.09,0.00027,60]
[340530806,1729419272427,-799.85,0.00027,60]
[340530807,1729419272471,-500.0,0.00027,60]
[340530808,1729419272517,-500.0,0.00027,60]
[340530809,1729419272559,-451.30485394,0.00027,60]
[340530810,1729419272603,-514.21781064,0.00027,60]
[340530811,1729419272647,-500.0,0.00027,60]
[340530812,1729419272693,-500.0,0.00027,60]
[340530813,1729419272737,-540.93877312,0.00027,60]
[340530814,1729419272781,-1212.9,0.00027,60]
[340530815,1729419272827,-522.92095842,0.00027,60]
[340530816,1729419272873,-996.36,0.00027,60]
[340530817,1729419272919,-500.0,0.00027,60]
[340530818,1729419272962,-988.73,0.00027,60]
[340530819,1729419273007,-500.0,0.00027,60]
[340530820,1729419273053,-884.02,0.00027,60]
[340530821,1729419273102,-500.0,0.00027,60]
[340530822,1729419273147,-500.0,0.00027,60]
[340530823,1729419273193,-500.0,0.00027,60]
[340530824,1729419273242,-944.68,0.00027,60]
[340530825,1729419273291,-500.0,0.00027,60]
[340530826,1729419273340,-500.0,0.00027,60]
[340530827,1729419273386,-715.93,0.00027,60]
[340530828,1729419273431,-620.26114375,0.00027,60]
[340530829,1729419273480,-500.0,0.00027,60]
[340530830,1729419273527,-500.0,0.00027,60]
[340530831,1729419273571,-224.45541996,0.00027,60]
[340530832,1729419273617,-500.0,0.00027,60]
[340530833,1729419273663,-500.0,0.00027,60]
[340530834,1729419273707,-500.0,0.00027,60]
[340530835,1729419273751,-206.49554474,0.00027,60]
[340530836,1729419273796,-525.8,0.00027,60]
[340530837,1729419273840,-500.0,0.00027,60]
[340530838,1729419273886,-500.0,0.00027,60]
[340530839,1729419273931,-500.0,0.00027,60]
[340530840,1729419273975,-500.0,0.00027,60]
[340530841,1729419274019,-500.0,0.00027,60]
[340530842,1729419274061,-2081.06,0.00027,60]
[340530843,1729419274107,-500.0,0.00027,60]
[340530844,1729419274151,-1000.0,0.00027,60]
[340530845,1729419274197,-500.0,0.00027,60]
[340530846,1729419274241,-502.1247708,0.00027,60]
[340530847,1729419274285,-764.5,0.00027,60]
[340530848,1729419274329,-500.0,0.00027,60]
[340530849,1729419274371,-500.0,0.00027,60]
[340530850,1729419274418,-500.0,0.00027,60]
[340530851,1729419274464,-500.0,0.00027,60]
[340530852,1729419274513,-500.0,0.00027,60]
[340530853,1729419274556,-500.0,0.00027,60]
[340530854,1729419274598,-500.0,0.00027,60]
[340530855,1729419274640,-500.0,0.00027,60]
[340530856,1729419274682,-926.1,0.00027,60]
[340530857,1729419274727,-500.0,0.00027,60]
[340530858,1729419274770,-500.0,0.00027,60]
[340530859,1729419274816,-500.0,0.00027,60]
[340530860,1729419274861,-783.93,0.00027,60]
[340530861,1729419274907,-685.1,0.00027,60]
[340530862,1729419274950,-500.0,0.00027,60]
[340530863,1729419275008,-500.0,0.00027,60]
[340530864,1729419275055,-984.9,0.00027,60]
[340530865,1729419275103,-500.0,0.00027,60]
[340530866,1729419275149,-500.0,0.00027,60]
[340530867,1729419275195,-1543.19,0.00027,60]
[340530868,1729419275238,-500.0,0.00027,60]
[340530869,1729419275281,-514.90435831,0.00027,60]
[340530870,1729419275326,-521.65093767,0.00027,60]
[340530871,1729419275371,-2057.47,0.00027,60]
[340530872,1729419275415,-500.0,0.00027,60]
[340530873,1729419275465,-500.0,0.00027,60]
[340530874,1729419275516,-500.0,0.00027,60]
[340530875,1729419275561,-998.64,0.00027,60]
[340530876,1729419275607,-500.0,0.00027,60]
[340530877,1729419275651,-500.0,0.00027,60]
[340530878,1729419275694,-500.0,0.00027,60]
[340530879,1729419275741,-500.0,0.00027,60]
[340530880,1729419275785,-500.0,0.00027,60]
[340530881,1729419275829,-500.0,0.00027,60]
[340530882,1729419275871,-500.0,0.00027,60]
[340530883,1729419275914,-500.0,0.00027,60]
[340530884,1729419275957,-507.64413736,0.00027,60]
[340530885,1729419276001,-500.0,0.00027,60]
[340530886,1729419276044,-1248.6,0.00027,60]
[340530887,1729419276090,-797.41,0.00027,60]
[340530888,1729419276133,-2521.03,0.00027,60]
[340530889,1729419276178,-919.91,0.00027,60]
[340530890,1729419276224,-500.0,0.00027,60]
[340530891,1729419276268,-500.0,0.00027,60]
[340530892,1729419276312,-500.0,0.00027,60]
[340530893,1729419276357,-500.0,0.00027,60]
[340530894,1729419276400,-1264.41,0.00027,60]
[340530895,1729419276441,-500.0,0.00027,60]
[340530896,1729419276487,-507.74461695,0.00027,60]
[340530897,1729419276529,-968.69,0.00027,60]
[340530898,1729419276573,-500.0,0.00027,60]
[340530899,1729419276613,-500.0,0.00027,60]
[340530900,1729419276654,-922.77,0.00027,60]
[340530901,1729419276696,-500.0,0.00027,30]
[340530902,1729419276737,-501.09565438,0.00027,60]
[340530903,1729419276778,-639.78,0.00027,60]
[340530904,1729419276819,-971.31,0.00027,60]
[340530905,1729419276858,-500.0,0.00027,60]
[340530906,1729419277052,-742.41,0.00027,60]
[340530907,1729419277093,-500.0,0.00027,60]
[340530908,1729419277136,-659.15,0.00027,60]
[340530909,1729419277183,-500.0,0.00027,60]
[340530910,1729419277226,-500.0,0.00027,60]